{"text_format":"1","workbook":"xlsx","n_sheets":3,"sheets":["Forside","Norsk forsikringsforetak","Filial-NUF"],"not_rendered":{"charts":0,"images":1,"macros":1,"external_links":0,"defined_names":1,"comments":0,"pivot_tables":0},"unopened":[],"bounds":{"document_bytes":16777216,"sheet_cells":100000,"rows_first":2000,"rows_last":500,"rows_between":2000,"halvings":0,"cell_chars":16384,"cell_head_chars":4096},"cells_cut":0,"cells_raw":0,"read":"whole","date_system":"1900"}

{"sheet":"Forside","index":0,"n_rows":17,"n_cols":98,"rows_kept":17,"cut":false,"hidden":false,"merged":[[4,1,4,3],[12,1,12,2],[7,1,7,2],[8,1,8,2],[11,1,11,2]]}
["VERSJONSNUMMER",null,null,null,null,null,null,null,null,null,null,null,null,null,null,null,null,null,null,{"$f":"(YEAR(NOW())-1)","v":2021},null,"Grunnlag for beregning av avsetning til garantiordningen pr. 31. desember ",null,null,null,null,null,null,null,null,null,null,null,null,{"$f":"(YEAR(NOW()))","v":2022},null,null,null,null,null,null,null,null,null,null,null,null,null,null,null,null,null,2,{"$f":"B11","v":20200131},{"$f":"A2","v":300},{"$f":"D9","v":0},{"$f":"D11","v":2021},12,10,"Forside",{"$f":"IF(B15=\"Konsolidert\",2,IF(B15=\"Ikke-Konsolidert\",1,IF(B15=\"\",-1)))","v":-1},0,null,null,null,null,null,null,null,null,null,null,null,null,null,null,null,null,"BA",999999001,"BB",{"$f":"+CB1+1","v":999999002},"BC",{"$f":"+CD1+1","v":999999003},"BD",{"$f":"+CF1+1","v":999999004},"BE",{"$f":"+CH1+1","v":999999005},"BF",{"$f":"+CJ1+1","v":999999006},"BG",{"$f":"+CL1+1","v":999999007},"BH",{"$f":"+CN1+1","v":999999008},"BI",{"$f":"+CP1+1","v":999999009},"BJ",{"$f":"+CR1+1","v":999999010}]
[300,null,null,null,null,null,null,null,null,null,null,null,null,null,null,null,null,null,null,{"$f":"(YEAR(NOW())-2)","v":2020},null,"Øvre grense for avsetning til garantiordningen pr. 31. desember ",null,null,null,null,null,null,null,null,null,null,null,null,{"$f":"(YEAR(NOW())-1)","v":2021},null,null,null,null,null,null,null,null,null,null,null,null,null,null,null,null,null,"Skjema-ID","versjonNr","VersjonsID","orgnr","ÅR","mnd","Antall datakolonner","Arknavn","konsIkkeKons","SA/IRB"]
[null,null,null,null,null,null,null,null,null,null,null,null,null,null,null,null,null,null,null,{"$f":"(YEAR(NOW())-3)","v":2019},null,"Avsetning til garantiordningen pr. 31. desember "]
[null,null,null,null,null,null,null,null,null,null,null,null,null,null,null,null,null,null,null,null,null,"Rapporteres hvis avsetningen pr. 31. desember  "]
[null,"Garantiordningen for skadeforsikring",null,null,null,null,null,null,null,null,null,null,null,null,null,null,null,null,null,null,null,"er lavere enn øvre grense for avsetningen:",null,null,null,null,null,null,null,null,null,null,null,null,null,null,null,null,null,null,null,null,null,null,null,null,null,null,null,null,null,null,null,null,null,null,null,null,"i dokumentet"]
[null,null,null,null,null,null,null,null,null,null,null,null,null,null,null,null,null,null,null,null,null,null,null,null,null,null,null,null,null,null,null,null,null,null,null,null,null,null,null,null,null,null,null,null,null,null,null,null,null,null,null,null,null,"Dette er skjemaversjonens CREATION DATE"]
[null,null,null,null,null,null,null,null,null,null,null,null,null,null,null,null,null,null,null,null,null,"Avsetning til garantiordningen pr. 31. desember "]
[null,"FORETAKETS NAVN:",null,"ORGANISASJONSNUMMER:",null,null,null,null,null,null,null,null,null,null,null,null,null,null,null,null,null,"Endring i avsetning til garantiordningen i løpet av "]
[null,null,null,null,null,null,null,null,null,null,null,null,null,null,null,null,null,null,null,null,null,"Kontroll (1 prosent av opptjente bruttopremier for direkte forsikringer i",null,null,null,null,null,null,null,null,null,null,null,null,null,null,null,null,null,null,null,null,null,null,null,null,null,null,null,null,null,null,null,null,null,null,null,null,null,null,null,null,null,null,null,null,null,null,null,null,null,null,null,null,null,null,null,null,"B",295]
[null,"EXCELMAL GYLDIG FRA:","SISTE DAG I RAPPORTERINGSPERIODEN:","RAPPORTERINGSÅR:",null,null,null,null,null,null,null,null,null,null,null,null,null,null,null,null,null,"NUF"]
[null,20200131,{"$f":"D11&\"-\"&12&\"-\"&31","v":"2021-12-31"},2021,null,null,null,null,null,null,null,null,null,null,null,null,null,null,null,null,null,"Grunnlag for beregning av filialens forpliktelser overfor garantiordningen pr. 31. desember ",null,null,null,null,null,null,null,null,null,null,null,null,null,null,null,null,null,null,null,null,null,null,null,null,null,null,null,null,null,null,null,null,null,null,null,null,null,null,null,null,null,null,null,null,null,null,null,null,null,null,null,null,null,null,null,null,"B",296,"D",297,"E",298]
[null,"KONSOLIDERT ELLER  IKKE KONSOLIDERT",null,"Ikke konsolidert",null,null,null,null,null,null,null,null,null,null,null,null,null,null,null,null,null,"Filialens forpliktelser overfor garantiordningen pr. 31. desember "]
[null,"Hvilken type foretak?",null,"Norsk forsikringsforetak",null,null,null,null,null,null,null,null,null,null,null,null,null,null,null,null,null,"Filialens forpliktelser overfor garantiordningen pr. 31. desember "]
[]
[null,null,null,null,null,null,null,null,null,null,null,null,null,null,null,null,null,null,null,null,null,"Forfalte bruttopremier i "]
[]
[null,null,null,null,null,null,null,null,null,null,null,null,null,null,null,null,null,null,null,null,null,"Total forvaltningskapital pr. 31. desember"]

{"sheet":"Norsk forsikringsforetak","index":1,"n_rows":35,"n_cols":6,"rows_kept":35,"cut":false,"hidden":false,"merged":[[5,2,5,5],[6,2,6,5]]}
[]
[]
[]
["Garantiordningen for skadeforsikring - Norsk forsikringsforetak"]
[]
["Bransjer - direkte forsikringer",null,"Opptjente bruttopremier for direkte forsikringer"]
[null,"Rapporter i 1000 kroner","der risikoen består i Norge"]
["FORT-kode","Bransjenavn",{"$f":"E8-2","v":2019},{"$f":"E8-1","v":2020},{"$f":"Forside!D11","v":2021},"Sum"]
[1010,"Forsikring mot utgifter til medisinsk behandling",null,null,null,{"$f":"C9+D9+E9","v":0}]
[1020,"Forsikring mot inntektstap",null,null,null,{"$f":"C10+D10+E10","v":0}]
[1030,"Yrkesskadeforsikring",null,null,null,0]
[1040,"Motorvognforsikring - trafikk",null,null,null,0]
[1050,"Motorvognforsikring - øvrig",null,null,null,0]
[null,"  -  Bruttopremier for direkte forsikringer som ikke dekkes av ordningen",null,null,null,0]
[1060,"Sjøforsikring, transportforsikring og luftfartforsikring",null,null,null,0]
[null,"  -  Bruttopremier for direkte forsikringer som ikke dekkes av ordningen",null,null,null,0]
[1070,"Forsikring mot brann og annen skade på eiendom",null,null,null,0]
[null,"  -  Bruttopremier for direkte forsikringer som ikke dekkes av ordningen",null,null,null,0]
[1080,"Ansvarsforsikring",null,null,null,0]
[null,"  -  Bruttopremier for direkte forsikringer som ikke dekkes av ordningen",null,null,null,0]
[1090,"Kreditt- og kausjonsforsikring"]
[1100,"Rettshjelpforsikring",null,null,null,{"$f":"C22+D22+E22","v":0}]
[1110,"Assistanseforsikring",null,null,null,0]
[1120,"Forsikring mot diverse økonomiske tap",null,null,null,0]
[null,"  -  Bruttopremier for direkte forsikringer som ikke dekkes av ordningen",null,null,null,0]
[null,"Sum",{"$f":"SUM(C9:C20)+SUM(C22:C25)","v":0},{"$f":"SUM(D9:D20)+SUM(D22:D25)","v":0},{"$f":"SUM(E9:E20)+SUM(E22:E25)","v":0}]
[]
[null,{"$f":"Forside!V1 & \" \" & E8","v":"Grunnlag for beregning av avsetning til garantiordningen pr. 31. desember  2021"},null,null,null,{"$f":"SUM(F9:F20)+SUM(F22:F25)","v":0}]
[null,{"$f":"Forside!V2 & \" \" & E8","v":"Øvre grense for avsetning til garantiordningen pr. 31. desember  2021"},null,null,null,{"$f":"0.015*F28","v":0}]
[null,{"$f":"Forside!V3 & \" \" & E8","v":"Avsetning til garantiordningen pr. 31. desember  2021"}]
[]
[null,{"$f":"Forside!V4 & \"\" & E8 & \" \" &Forside!V5","v":"Rapporteres hvis avsetningen pr. 31. desember  2021 er lavere enn øvre grense for avsetningen:"}]
[null,{"$f":"Forside!V7 & \" \" &D8","v":"Avsetning til garantiordningen pr. 31. desember  2020"}]
[null,{"$f":"Forside!V8 & \" \" &E8","v":"Endring i avsetning til garantiordningen i løpet av  2021"},null,null,null,{"$f":"IF(F33<>\"\",(F30-F33),\"\")","v":""}]
[null,{"$f":"Forside!V9 & \" \" &E8& \")\"","v":"Kontroll (1 prosent av opptjente bruttopremier for direkte forsikringer i 2021)"},null,null,null,{"$f":"IF(F33<>\"\",(0.01*E26),\"\")","v":""}]

{"sheet":"Filial-NUF","index":2,"n_rows":35,"n_cols":6,"rows_kept":35,"cut":false,"hidden":true,"merged":[[5,2,5,5],[6,2,6,5]]}
[]
[]
[]
["Garantiordningen for skadeforsikring - Norsk utenlandsk filial (NUF)"]
[]
["Bransjer - direkte forsikringer",null,"Opptjente bruttopremier for direkte forsikringer"]
[null,"Rapporter i 1000 kroner","der risikoen består i Norge"]
["FORT-kode","Bransjenavn",{"$f":"D8-1","v":2019},{"$f":"E8-1","v":2020},{"$f":"Forside!D11","v":2021},"Sum"]
[1010,"Forsikring mot utgifter til medisinsk behandling",null,null,null,{"$f":"C9+D9+E9","v":0}]
[1020,"Forsikring mot inntektstap",null,null,null,{"$f":"C10+D10+E10","v":0}]
[1030,"Yrkesskadeforsikring",null,null,null,0]
[1040,"Motorvognforsikring - trafikk",null,null,null,0]
[1050,"Motorvognforsikring - øvrig",null,null,null,0]
[null,"  -  Bruttopremier for direkte forsikringer som ikke dekkes av ordningen",null,null,null,0]
[1060,"Sjøforsikring, transportforsikring og luftfartforsikring",null,null,null,0]
[null,"  -  Bruttopremier for direkte forsikringer som ikke dekkes av ordningen",null,null,null,0]
[1070,"Forsikring mot brann og annen skade på eiendom",null,null,null,0]
[null,"  -  Bruttopremier for direkte forsikringer som ikke dekkes av ordningen",null,null,null,0]
[1080,"Ansvarsforsikring",null,null,null,0]
[null,"  -  Bruttopremier for direkte forsikringer som ikke dekkes av ordningen",null,null,null,0]
[1090,"Kreditt- og kausjonsforsikring"]
[1100,"Rettshjelpforsikring",null,null,null,{"$f":"C22+D22+E22","v":0}]
[1110,"Assistanseforsikring",null,null,null,0]
[1120,"Forsikring mot diverse økonomiske tap",null,null,null,0]
[null,"  -  Bruttopremier for direkte forsikringer som ikke dekkes av ordningen",null,null,null,0]
[null,"Sum",{"$f":"SUM(C9:C20)+SUM(C22:C25)","v":0},{"$f":"SUM(D9:D20)+SUM(D22:D25)","v":0},{"$f":"SUM(E9:E20)+SUM(E22:E25)","v":0}]
[]
[null,{"$f":"Forside!V11 & \" \"&E8","v":"Grunnlag for beregning av filialens forpliktelser overfor garantiordningen pr. 31. desember  2021"},null,null,null,{"$f":"SUM(F9:F20)+SUM(F22:F25)","v":0}]
[null,{"$f":"Forside!V12 & \" \"&E8","v":"Filialens forpliktelser overfor garantiordningen pr. 31. desember  2021"},null,null,null,{"$f":"0.015*F28","v":0}]
[]
[null,{"$f":"Forside!V13 & \" \"&D8","v":"Filialens forpliktelser overfor garantiordningen pr. 31. desember  2020"}]
[]
[null,"Memo:"]
[null,{"$f":"Forside!V15 & \" \" & E8","v":"Forfalte bruttopremier i  2021"}]
[null,{"$f":"Forside!V17 & \" \" & E8","v":"Total forvaltningskapital pr. 31. desember 2021"}]